[Event "I Liga Centralne Srbije"]
[Site "Bajina Bašta, Serbia"]
[Date "2020.10.14"]
[Round "7.6"]
[White "Dezelin, Milan"]
[Black "Radovic, Luka"]
[Result "0-1"]
[ECO "D37"]
[WhiteElo "1984"]
[BlackElo "2334"]
[Annotator "Knez"]
[PlyCount "58"]
[EventDate "2020.??.??"]
[TimeControl "90"]

1. d4 {[%emt 2:22:42]} d5 {[%emt 0:00:31]} 2. c4 {[%emt 0:00:15]} e6 {[%emt 0:
00:29]} 3. Nc3 {[%emt 0:00:08]} Nf6 {[%emt 0:00:42]} 4. Nf3 {[%emt 0:00:11]}
Be7 {[%emt 0:01:52]} 5. Bf4 {[%emt 0:00:25]} O-O {[%emt 0:01:17]} 6. e3 {
[%emt 0:05:34]} c5 {[%emt 0:00:40]} 7. dxc5 {[%emt 0:02:33]} Bxc5 {[%emt 0:00:
45]} 8. Qc2 {[%emt 0:06:42]} Nc6 {[%emt 0:00:26]} 9. a3 {[%emt 0:01:53]} Re8 {
[%emt 0:01:30]} 10. Rd1 {[%emt 0:23:13]} e5 {[%emt 0:00:49]} 11. Bg5 {[%emt 0:
13:25]} d4 {[%emt 0:00:33]} 12. Nd5 {[%emt 0:23:04]} Be7 {[%emt 0:04:28]} 13.
Nxe7+ {[%emt 0:02:08]} Qxe7 {[%emt 0:02:06]} 14. e4 {[%emt 0:01:55]} Bg4 {
[%emt 0:08:11]} 15. Be2 {[%emt 0:06:09]} h6 {[%emt 0:00:52]} 16. Bxf6 {[%emt 0:
02:33]} Qxf6 {[%emt 0:01:00]} 17. O-O {[%emt 0:00:05]} Rac8 {[%emt 0:03:49]}
18. b4 {[%emt 0:02:38]} Qe7 {[%emt 0:28:12]} 19. Qa4 {[%emt 0:01:17]} b6 {
[%emt 0:05:33]} 20. Rc1 {[%emt 0:02:06]} d3 {[%emt 0:04:09]} 21. Bd1 {[%emt 0:
01:20]} Red8 {[%emt 0:06:35]} 22. c5 {[%emt 0:02:17]} bxc5 {[%emt 0:04:33]} 23.
Rxc5 {[%emt 0:00:19]} Bxf3 {[%emt 0:00:49]} 24. Rxc6 {[%emt 0:01:05]} Bxe4 {
[%emt 0:00:55]} 25. Rxc8 {[%emt 0:00:26]} Rxc8 {[%emt 0:00:03]} 26. Re1 {
[%emt 0:00:28]} Qb7 {[%emt 0:04:04]} 27. Bg4 {[%emt 0:00:25]} f5 {[%emt 0:00:
53]} 28. Bh5 {[%emt 0:00:42]} d2 {[%emt 0:01:14]} 29. Rd1 {[%emt 0:00:17]} Bc2
{[%emt 0:00:24]} 0-1

[Event "I Liga Centralne Srbije"]
[Site "Bajina Bašta, Serbia"]
[Date "2020.10.14"]
[Round "7.6"]
[White "Zlatanovic, Boroljub"]
[Black "Dimitrijevic, Nenad"]
[Result "1/2-1/2"]
[ECO "A36"]
[WhiteElo "2372"]
[BlackElo "2142"]
[Annotator "Knez"]
[PlyCount "77"]
[EventDate "2020.??.??"]
[TimeControl "90"]

1. e4 {[%emt 0:33:31]} c5 {[%emt 0:00:31]} 2. c4 {[%emt 0:02:16]} Nc6 {[%emt 0:
00:07]} 3. Nc3 {[%emt 0:00:06]} g6 {[%emt 0:00:04]} 4. g3 {[%emt 0:00:45]} Bg7
{[%emt 0:00:10]} 5. Bg2 {[%emt 0:00:44]} e6 {[%emt 0:01:09]} 6. d3 {[%emt 0:00:
40]} Nge7 {[%emt 0:04:16]} 7. h4 {[%emt 0:01:12]} h5 {[%emt 0:03:23]} 8. Bg5 {
[%emt 0:01:03]} d6 {[%emt 0:01:31]} 9. Qd2 {[%emt 0:00:16]} a6 {[%emt 0:00:08]}
10. Nge2 {[%emt 0:02:22]} Rb8 {[%emt 0:01:21]} 11. O-O {[%emt 0:02:40]} b5 {
[%emt 0:01:03]} 12. Rac1 {[%emt 0:01:09]} Qd7 {[%emt 0:03:30]} 13. Rfe1 {
[%emt 0:05:53]} b4 {[%emt 0:05:45]} 14. Nd1 {[%emt 0:05:57]} Nd4 {[%emt 0:05:
03]} 15. Nxd4 {[%emt 0:06:34]} Bxd4 {[%emt 0:02:28]} 16. Be3 {[%emt 0:02:32]}
Nc6 {[%emt 0:08:53]} 17. Bxd4 {[%emt 0:06:22]} Nxd4 {[%emt 0:01:03]} 18. Ne3 {
[%emt 0:00:46]} Bb7 {[%emt 0:00:51]} 19. Nc2 {[%emt 0:02:22]} Nxc2 {[%emt 0:04:
38]} 20. Rxc2 {[%emt 0:00:25]} e5 {[%emt 0:02:55]} 21. f4 {[%emt 0:05:23]} Qe7
{[%emt 0:02:49]} 22. Rf1 {[%emt 0:07:23]} exf4 {[%emt 0:03:39]} 23. Qxf4 {
[%emt 0:01:06]} O-O {[%emt 0:09:45]} 24. Rcf2 {[%emt 0:03:10]} Kg7 {[%emt 0:06:
17]} 25. Qf6+ {[%emt 0:02:34]} Qxf6 {[%emt 0:00:09]} 26. Rxf6 {[%emt 0:00:02]}
Rbd8 {[%emt 0:00:49]} 27. Bh3 {[%emt 0:02:36]} a5 {[%emt 0:00:06]} 28. R1f4 {
[%emt 0:03:43]} Bc6 {[%emt 0:01:21]} 29. Kf2 {[%emt 0:03:06]} Ba4 {[%emt 0:00:
43]} 30. Ke3 {[%emt 0:03:03]} Bc2 {[%emt 0:01:14]} 31. Rf1 {[%emt 0:11:17]} Ba4
{[%emt 0:02:32]} 32. R1f2 {[%emt 0:02:57]} Bd7 {[%emt 0:04:44]} 33. Bxd7 {
[%emt 0:00:58]} Rxd7 {[%emt 0:00:04]} 34. d4 {[%emt 0:01:48]} Re8 {[%emt 0:02:
24]} 35. Kd3 {[%emt 0:01:49]} Re6 {[%emt 0:01:35]} 36. Rxe6 {[%emt 0:01:38]}
fxe6 {[%emt 0:00:05]} 37. Ke3 {[%emt 0:01:25]} e5 {[%emt 0:00:35]} 38. d5 {
[%emt 0:00:48]} a4 {[%emt 0:00:25]} 39. Ke2 {[%emt 0:00:30]} 1/2-1/2